bitfinex/quotes_BTCUSD_20220205
["timestamp","ask_amount","ask_price","bid_price","bid_amount"]
[1644096691887,0.01,41739.0,41735.0,0.30393943]
[1644096692088,0.0107165,41739.0,41735.0,0.30393943]
[1644096693136,0.01,41739.0,41735.0,0.30393943]
[1644096693336,0.0107165,41739.0,41735.0,0.30393943]
[1644096694139,0.07744882,41736.0,41735.0,0.30393943]
[1644096694343,0.01,41739.0,41735.0,0.30393943]
[1644096694540,0.01069245,41739.0,41735.0,0.30393943]
[1644096694738,0.01069245,41739.0,41736.0,0.334999]
[1644096695540,0.01,41739.0,41737.0,0.19977425]
[1644096695741,0.0760281,41739.0,41738.0,0.334999]
[1644096695941,0.0760281,41739.0,41735.0,0.25178139]
[1644096696141,0.0760281,41739.0,41735.0,0.30178139]
[1644096696540,0.0760281,41739.0,41735.0,0.05]
[1644096696788,0.0760281,41739.0,41732.0,0.42629172]
[1644096696989,0.07672055,41739.0,41732.0,0.37429172]
[1644096697184,0.07672055,41739.0,41735.0,0.19850021]
[1644096697585,0.07672055,41739.0,41735.0,0.05]
[1644096697784,0.07672055,41739.0,41732.0,0.42629172]
[1644096697990,0.7,41731.0,41714.0,0.75424898]
[1644096698193,0.05,41723.0,41717.0,0.00268304]
[1644096698389,0.15,41724.0,41717.0,0.00268304]
[1644096698390,0.13131368,41718.0,41717.0,0.00268304]
[1644096698586,0.05,41718.0,41717.0,0.00268304]
[1644096699085,0.05,41718.0,41706.0,0.00028737]
[1644096699286,0.28847473,41719.0,41705.0,0.002]
[1644096699287,0.05,41708.0,41705.0,0.002]
[1644096699686,0.26944009,41708.0,41705.0,0.002]
[1644096700286,0.048,41707.0,41705.0,0.00228737]
[1644096700536,0.048,41707.0,41705.0,0.002]
[1644096700737,0.34025555,41707.0,41705.0,0.002]
[1644096700938,0.29183937,41706.0,41705.0,0.002]
[1644096701239,0.33983937,41706.0,41705.0,0.002]
[1644096701638,0.048,41706.0,41705.0,0.002]
[1644096704142,0.048,41706.0,41703.0,0.0007144]
[1644096704392,0.05,41704.0,41703.0,0.0007144]
[1644096705193,0.05,41704.0,41702.0,0.002]
[1644096705595,0.29574547,41703.0,41702.0,0.002]
[1644096705895,0.34374547,41703.0,41702.0,0.002]
[1644096706795,0.2944057,41703.0,41702.0,0.002]
[1644096707797,0.05,41704.0,41702.0,0.002]
[1644096708041,0.048,41703.0,41702.0,0.002]
[1644096709845,0.35440382,41703.0,41702.0,0.002]
[1644096710141,0.34341829,41703.0,41702.0,0.002]
[1644096710540,0.048,41703.0,41702.0,0.002]
[1644096710943,0.3474,41703.0,41702.0,0.002]
[1644096711143,0.048,41703.0,41702.0,0.002]
[1644096714495,0.0500947,41703.0,41702.0,0.002]
[1644096717440,0.35971939,41703.0,41702.0,0.002]
[1644096721688,0.45971939,41703.0,41702.0,0.002]
[1644096726895,0.45971939,41703.0,41702.0,0.00188332]
[1644096727493,0.45971939,41703.0,41702.0,0.01188332]
[1644096729497,0.45971939,41703.0,41702.0,0.00878332]
[1644096730534,0.95971939,41703.0,41702.0,0.00878332]
[1644096731041,1.12447428,41703.0,41702.0,0.00878332]
[1644096731333,0.95971939,41703.0,41702.0,0.00878332]
[1644096731535,1.12447428,41703.0,41702.0,0.00878332]
[1644096731735,0.95971939,41703.0,41702.0,0.00878332]
[1644096731935,1.12447428,41703.0,41702.0,0.00878332]
[1644096732136,0.62447428,41703.0,41702.0,0.00878332]
[1644096732335,0.45971939,41703.0,41702.0,0.00878332]
[1644096734039,0.45739729,41703.0,41702.0,0.00878332]
[1644096739239,0.45767982,41703.0,41702.0,0.00878332]
[1644096748540,0.47767982,41703.0,41702.0,0.00878332]
[1644096748942,0.16805513,41703.0,41702.0,0.00878332]
[1644096749143,0.46133837,41703.0,41702.0,0.00878332]
[1644096750591,0.458992,41703.0,41702.0,0.00878332]
[1644096751593,0.458992,41703.0,41697.0,0.002]
[1644096751594,0.78723253,41702.0,41697.0,0.002]
[1644096751800,0.6505,41698.0,41697.0,0.002]
[1644096752193,0.6505,41698.0,41695.0,0.002]
[1644096752194,0.002,41697.0,41695.0,0.002]
[1644096752395,0.9025,41697.0,41691.0,0.002]
[1644096752594,0.08834621,41692.0,41689.0,0.0011]
[1644096752795,0.048,41691.0,41689.0,0.0011]
[1644096753039,0.6485,41691.0,41689.0,0.0011]
[1644096753239,0.05,41690.0,41689.0,0.0011]
[1644096753539,0.09759,41690.0,41689.0,0.0011]
[1644096753840,0.43016929,41690.0,41688.0,8.559e-05]
[1644096754041,0.91771244,41689.0,41687.0,0.00118559]
[1644096754343,0.37309823,41688.0,41687.0,0.0011]
[1644096754547,0.7,41687.0,41684.0,0.0225708]
[1644096754741,0.8,41687.0,41685.0,0.0002856]
[1644096754941,1.03167283,41686.0,41684.0,0.0024856]
[1644096755139,0.922375,41685.0,41684.0,0.0022]
[1644096755340,1.18722725,41685.0,41684.0,0.0022]
[1644096755640,1.070375,41685.0,41684.0,0.0022]
[1644096755840,1.23522725,41685.0,41684.0,0.0022]
[1644096757490,1.23405725,41685.0,41684.0,0.0022]
[1644096758092,1.28405725,41685.0,41684.0,0.0022]
[1644096758891,1.43405725,41685.0,41680.0,0.0052]
[1644096759097,0.2,41682.0,41680.0,0.0041]
[1644096759295,0.2,41682.0,41671.0,0.04536779]
[1644096759296,0.05,41680.0,41671.0,0.04536779]
[1644096759492,0.9312162,41679.0,41671.0,0.02478457]
[1644096759892,1.24406845,41679.0,41671.0,0.02478457]
[1644096760092,0.7,41678.0,41671.0,0.02478457]
[1644096760295,0.2,41671.0,41665.0,0.0004406]
[1644096760566,0.65009,41666.0,41665.0,0.02084972]
[1644096760765,1.11371801,41666.0,41665.0,0.02084972]
[1644096760963,0.7,41665.0,41664.0,0.0008812]
[1644096761166,1.59251719,41665.0,41664.0,0.0008812]
[1644096761368,0.7,41664.0,41661.0,0.01]
[1644096761568,0.04959,41662.0,41661.0,0.01]
[1644096761766,0.40538434,41662.0,41661.0,0.01]
[1644096761968,0.7,41660.0,41647.0,0.0011]
[1644096762170,0.04959,41652.0,41647.0,0.0011]
[1644096762372,0.37078114,41652.0,41647.0,0.0011]
[1644096762768,0.47078114,41652.0,41647.0,0.0011]
[1644096763570,0.19759,41652.0,41647.0,0.0011]
[1644096763774,0.048,41652.0,41651.0,0.00041]
[1644096764071,0.1,41659.0,41651.0,0.00041]
[1644096764072,0.16485225,41659.0,41651.0,0.00041]
[1644096764307,0.048,41660.0,41658.0,0.00041]
[1644096764700,0.13701578,41660.0,41658.0,0.00041]
[1644096764904,0.33707637,41662.0,41658.0,0.00041]
[1644096765101,0.04959,41661.0,41658.0,0.00041]
[1644096765301,0.04959,41661.0,41654.0,0.26001373]
[1644096765302,0.33707637,41662.0,41656.0,0.01485788]
[1644096765501,0.048,41661.0,41654.0,0.26001373]
[1644096765901,0.06875071,41656.0,41654.0,0.26001373]
[1644096766103,0.06875071,41656.0,41653.0,0.01485788]
[1644096766303,0.29826315,41660.0,41653.0,0.01485788]
[1644096766702,0.00065161,41657.0,41653.0,0.01485788]
[1644096767506,0.08912563,41656.0,41653.0,0.01485788]
[1644096768146,0.61699775,41655.0,41652.0,0.00064517]
[1644096768347,0.66499775,41655.0,41652.0,0.00064517]
[1644096768949,0.66499775,41655.0,41648.0,0.01485788]
[1644096769148,0.70013987,41655.0,41651.0,0.00064517]
[1644096770152,0.39913522,41655.0,41649.0,0.00028576]
[1644096770350,0.39913522,41655.0,41651.0,0.00064517]
[1644096770552,0.69353151,41655.0,41651.0,0.00064517]
[1644096771354,0.69353151,41655.0,41649.0,0.00028576]
[1644096771552,0.69407164,41655.0,41651.0,0.00062727]
[1644096771997,0.79407164,41655.0,41651.0,0.00062727]
[1644096772395,0.79407164,41655.0,41651.0,0.01485788]
[1644096772396,0.65892952,41655.0,41651.0,0.01485788]
[1644096772597,0.65892952,41655.0,41651.0,0.01548515]
[1644096772996,0.048,41655.0,41654.0,0.01485788]
[1644096773200,0.00062719,41656.0,41654.0,0.01485788]
[1644096773796,0.01995219,41657.0,41654.0,0.01485788]
[1644096774197,0.00222839,41655.0,41654.0,0.01514364]
[1644096774396,0.00222839,41655.0,41654.0,0.00985788]
[1644096774597,0.00222839,41655.0,41652.0,0.07593264]
[1644096774797,0.00222839,41655.0,41653.0,0.05]
[1644096775403,0.00222839,41655.0,41652.0,0.04862957]
[1644096775650,0.00222839,41655.0,41652.0,0.00062957]
[1644096776150,0.00222839,41655.0,41651.0,0.38166757]
[1644096776349,0.00222839,41655.0,41651.0,0.38229714]
[1644096776751,0.00222839,41655.0,41651.0,0.43229714]
[1644096777451,0.00222839,41655.0,41651.0,0.43229715]
[1644096778452,0.00222839,41655.0,41651.0,0.43166757]
[1644096778653,0.00222839,41655.0,41651.0,0.43231558]
[1644096779496,0.00116955,41654.0,41653.0,0.46]
[1644096779697,0.00116955,41654.0,41653.0,0.384999]
[1644096779898,0.00116955,41654.0,41653.0,0.434999]
[1644096781499,0.00116955,41654.0,41653.0,0.482999]
[1644096781799,0.00116955,41654.0,41653.0,0.477999]
[1644096783647,0.00116955,41654.0,41653.0,0.577999]
[1644096783848,0.00116955,41654.0,41653.0,0.477999]
[1644096784748,0.00146938,41654.0,41653.0,0.477999]
[1644096787306,0.00146938,41654.0,41653.0,0.429999]
[1644096790307,0.00146938,41654.0,41653.0,0.334999]
[1644096790543,0.00146938,41654.0,41652.0,0.33528475]
[1644096790743,0.00146938,41654.0,41652.0,0.334999]
[1644096791645,0.00146938,41654.0,41653.0,0.05]
[1644096791943,0.00146938,41654.0,41653.0,0.384999]
[1644096793946,0.04223682,41659.0,41654.0,0.46]
[1644096794395,0.04223682,41659.0,41658.0,0.38028965]
[1644096795095,0.086711,41662.0,41659.0,0.21085911]
[1644096795294,0.086711,41662.0,41659.0,0.21114486]
[1644096795495,0.086711,41662.0,41659.0,0.00028575]
[1644096795696,0.086711,41662.0,41656.0,0.00028575]
[1644096795897,0.086711,41662.0,41654.0,0.00028575]
[1644096796199,0.086711,41662.0,41648.0,0.04828575]
[1644096796395,0.086711,41662.0,41656.0,0.27861079]
[1644096796796,0.00071197,41658.0,41656.0,0.27889654]
[1644096796995,0.00071197,41658.0,41656.0,0.32861079]
[1644096797196,0.00071197,41658.0,41656.0,0.37861079]
[1644096797697,0.1069959,41662.0,41656.0,0.37861079]
[1644096797896,0.00071197,41659.0,41656.0,0.37389654]
[1644096798947,0.086711,41662.0,41656.0,0.37389654]
[1644096799150,0.00071196,41660.0,41656.0,0.37389654]
[1644096800049,0.0012981,41661.0,41656.0,0.37389654]
[1644096800250,0.00071196,41660.0,41656.0,0.37389654]
[1644096801254,0.0012981,41661.0,41656.0,0.37389654]
[1644096801451,0.00071196,41660.0,41656.0,0.37389654]
[1644096801895,0.00071196,41660.0,41657.0,0.25496794]
[1644096802094,0.00071196,41660.0,41657.0,0.25151698]
[1644096802297,0.00071196,41660.0,41657.0,0.00028575]
[1644096802496,0.0012981,41661.0,41656.0,0.37389654]
[1644096802697,0.00201005,41661.0,41656.0,0.62857133]
[1644096802896,0.00201005,41661.0,41656.0,0.63382463]
[1644096803695,0.0012981,41661.0,41656.0,0.63382463]
[1644096803901,0.00201005,41661.0,41656.0,0.63382463]
[1644096804195,0.00201005,41661.0,41656.0,0.63184546]
[1644096804395,0.00148107,41659.0,41656.0,0.63184546]
[1644096805198,0.00148107,41659.0,41656.0,0.37389654]
[1644096805397,0.00148107,41659.0,41656.0,0.62566053]
[1644096805649,0.00148107,41659.0,41656.0,0.37389654]
[1644096806251,0.00148107,41659.0,41656.0,0.62999011]
[1644096808257,0.00148107,41659.0,41658.0,0.334999]
[1644096808458,3.87e-06,41662.0,41659.0,0.7]
[1644096808657,3.87e-06,41662.0,41660.0,0.334999]
[1644096808866,3.87e-06,41662.0,41661.0,0.3]
[1644096809062,3.87e-06,41662.0,41661.0,0.68528475]
[1644096809321,0.08769143,41676.0,41665.0,0.060002]
[1644096809516,0.08769143,41676.0,41666.0,0.634999]
[1644096809716,0.08769143,41676.0,41671.0,0.6505]
[1644096809914,0.08769143,41676.0,41672.0,0.382999]
[1644096810114,0.08769143,41676.0,41675.0,0.3780759]
[1644096810313,0.08769143,41676.0,41675.0,0.7610749]
[1644096810519,0.08769143,41676.0,41675.0,0.9110749]
[1644096810714,0.08769143,41676.0,41675.0,1.22482771]
[1644096811316,0.105,41684.0,41675.0,1.22482771]
[1644096811514,0.105,41684.0,41676.0,0.334999]
[1644096811719,0.105,41684.0,41682.0,0.32243996]
[1644096812013,0.105,41684.0,41683.0,0.382999]
[1644096813045,0.105,41684.0,41683.0,0.6368029]
[1644096813451,0.105,41684.0,41670.0,0.21998]
[1644096813650,0.07878566,41677.0,41676.0,0.048]
[1644096813846,0.07878566,41677.0,41674.0,0.048]
[1644096814253,0.105,41684.0,41675.0,0.3]
[1644096814548,0.105,41684.0,41676.0,0.58188001]
[1644096814748,0.00071226,41682.0,41676.0,0.68188001]
[1644096815147,0.00071226,41682.0,41677.0,0.334999]
[1644096815347,0.06841081,41679.0,41676.0,0.37273518]
[1644096815552,0.06841081,41679.0,41676.0,0.1]
[1644096815750,0.06841081,41679.0,41677.0,0.05]
[1644096816351,0.06841081,41679.0,41674.0,0.098]
[1644096816550,0.06841081,41679.0,41674.0,0.148]
[1644096816807,0.00071228,41680.0,41675.0,0.54548449]
[1644096816999,0.105,41684.0,41676.0,0.382999]
[1644096817200,0.00071229,41679.0,41678.0,0.334999]
[1644096817400,0.00071229,41679.0,41678.0,0.65608927]
[1644096818201,0.105,41684.0,41678.0,0.65608927]
[1644096818404,0.00071227,41681.0,41678.0,0.32109027]
[1644096818804,0.00071227,41681.0,41678.0,0.048]
[1644096819204,0.00071227,41681.0,41678.0,0.30214882]
[1644096819411,0.105,41684.0,41679.0,0.334999]
[1644096819605,0.00071226,41682.0,41679.0,0.482999]
[1644096819810,0.00071226,41682.0,41680.0,0.334999]
[1644096820005,0.0790399,41682.0,41680.0,0.334999]
[1644096820208,0.0790399,41682.0,41679.0,0.148]
[1644096820407,0.0790399,41682.0,41679.0,0.048]
[1644096820662,0.07832764,41682.0,41679.0,0.048]
[1644096821860,0.07832764,41682.0,41678.0,0.35414882]
[1644096822661,0.06874004,41682.0,41678.0,0.35414882]
[1644096823161,0.0694523,41682.0,41678.0,0.35414882]
[1644096824163,0.00211714,41681.0,41678.0,0.35414882]
[1644096826104,0.00211714,41681.0,41680.0,0.33180444]
[1644096826705,0.00211714,41681.0,41680.0,0.66680344]
[1644096826906,0.00211714,41681.0,41680.0,0.33180444]
[1644096828062,0.00211714,41681.0,41680.0,0.38180444]
[1644096829464,0.05282723,41683.0,41680.0,0.38180444]
[1644096830265,0.05211498,41683.0,41680.0,0.38180444]
[1644096830466,0.00211498,41683.0,41681.0,0.334999]
[1644096830866,0.00211498,41683.0,41681.0,0.5897775]
[1644096831065,0.00211498,41683.0,41682.0,0.58651251]
[1644096831266,0.00211498,41683.0,41682.0,0.68651251]
[1644096831665,0.00211498,41683.0,41682.0,0.434999]
[1644096832099,0.00211498,41683.0,41681.0,0.30603448]
[1644096832306,0.00211498,41683.0,41681.0,0.05]
[1644096832499,0.00211498,41683.0,41680.0,0.43180444]
[1644096833199,0.00211498,41683.0,41681.0,0.334999]
[1644096834199,0.00211498,41683.0,41681.0,0.59283482]
[1644096834400,0.00211498,41683.0,41681.0,0.334999]
[1644096834601,0.00211498,41683.0,41681.0,0.25234693]
[1644096834807,0.00249257,41683.0,41682.0,0.334999]
[1644096835204,0.00249257,41683.0,41682.0,0.384999]
[1644096835652,0.00249257,41683.0,41682.0,0.05]
[1644096835853,0.00249257,41683.0,41681.0,0.30267588]
[1644096836056,0.00249257,41683.0,41682.0,0.58842608]
[1644096836254,0.00249257,41683.0,41682.0,0.63940799]
[1644096838057,0.105,41684.0,41683.0,0.7]
[1644096838256,0.105,41684.0,41683.0,1.49004196]
[1644096838655,0.105,41684.0,41683.0,0.79004196]
[1644096839804,0.01,41699.0,41685.0,0.384999]
[1644096840006,0.01,41699.0,41686.0,0.3676657]
[1644096840201,0.01,41699.0,41687.0,0.334999]
[1644096840400,0.01,41699.0,41688.0,0.048]
[1644096840599,0.01,41699.0,41692.0,0.37407516]
[1644096840800,0.01,41699.0,41692.0,0.42505702]
[1644096841001,0.09653095,41699.0,41693.0,0.048]
[1644096841201,0.00068865,41698.0,41693.0,0.04898184]
[1644096842203,0.09653095,41699.0,41693.0,0.04898184]
[1644096842402,0.00068865,41698.0,41693.0,0.04898184]
[1644096842804,0.05068865,41698.0,41693.0,0.04898184]
[1644096843049,0.09653095,41699.0,41693.0,0.04898184]
[1644096843249,0.1372196,41699.0,41693.0,0.04898184]
[1644096843451,0.1372196,41699.0,41693.0,0.00098184]
[1644096843452,0.04068865,41694.0,41693.0,0.00098184]
[1644096844550,0.55529737,41694.0,41693.0,0.00098184]
[1644096845051,0.86246596,41694.0,41693.0,0.00098184]
[1644096845360,0.91046596,41694.0,41693.0,0.00098184]
[1644096852853,0.90918793,41694.0,41693.0,0.00098184]
[1644096853059,0.86977731,41694.0,41693.0,0.00098184]
[1644096853253,0.90918793,41694.0,41693.0,0.00098184]
[1644096853856,1.00918793,41694.0,41693.0,0.00098184]
[1644096854308,1.16276954,41694.0,41693.0,0.00098184]
[1644096854503,0.90918793,41694.0,41693.0,0.00098184]
[1644096854703,1.06276954,41694.0,41693.0,0.00098184]
[1644096854904,0.60201934,41694.0,41693.0,0.00098184]
[1644096855102,0.85560095,41694.0,41693.0,0.00098184]
[1644096855305,0.70201934,41694.0,41693.0,0.00098184]
[1644096857607,0.65401934,41694.0,41693.0,0.00098184]
[1644096859855,0.70201934,41694.0,41693.0,0.00098184]
[1644096860059,0.65401934,41694.0,41693.0,0.00098184]
[1644096860457,0.70201934,41694.0,41693.0,0.00098184]
[1644096862003,0.99528007,41694.0,41693.0,0.00098184]
[1644096862203,0.70201934,41694.0,41693.0,0.00098184]
[1644096862400,0.85560095,41694.0,41693.0,0.00098184]
[1644096862602,0.70201934,41694.0,41693.0,0.00098184]
[1644096862804,0.99228825,41694.0,41693.0,0.00098184]
[1644096863408,0.85541877,41694.0,41693.0,0.00098184]
[1644096863603,0.70183716,41694.0,41693.0,0.00098184]
[1644096865553,1.00948829,41694.0,41693.0,0.00098184]
[1644096865957,1.1630699,41694.0,41693.0,0.00098184]
[1644096866154,0.70183716,41694.0,41693.0,0.00098184]
[1644096866355,0.89474625,41694.0,41693.0,0.00098184]
[1644096867954,0.60183716,41694.0,41693.0,0.00098184]
[1644096868158,1.04975536,41694.0,41693.0,0.00098184]
[1644096868356,0.60183716,41694.0,41693.0,0.00098184]
[1644096868560,0.75541877,41694.0,41693.0,0.00098184]
[1644096868758,0.60183716,41694.0,41693.0,0.00098184]
[1644096869398,1.00153706,41694.0,41693.0,0.00098184]
[1644096869801,1.15511867,41694.0,41693.0,0.00098184]
[1644096869996,1.00153706,41694.0,41693.0,0.00098184]
[1644096870198,1.15511867,41694.0,41693.0,0.00098184]
[1644096870396,0.70183716,41694.0,41693.0,0.00098184]
[1644096870596,0.85541877,41694.0,41693.0,0.00098184]
[1644096870997,0.70183716,41694.0,41693.0,0.00098184]
[1644096873550,0.70021826,41694.0,41693.0,0.00098184]
[1644096873757,0.08741062,41694.0,41693.0,0.00098184]
[1644096873952,0.03941062,41694.0,41693.0,0.00098184]
[1644096876904,0.03941062,41694.0,41693.0,0.01157122]
[1644096877309,0.05043087,41699.0,41693.0,0.01157122]
[1644096877503,0.03941062,41694.0,41693.0,0.01157122]
[1644096877904,0.03020978,41699.0,41693.0,0.01157122]
[1644096878504,0.03941062,41694.0,41693.0,0.01157122]
[1644096879503,0.01,41699.0,41693.0,0.00098184]
[1644096879705,0.03941062,41697.0,41693.0,0.00098184]
[1644096881952,0.03191062,41697.0,41693.0,0.00098184]
[1644096882153,0.02877287,41699.0,41693.0,0.00098184]
[1644096882356,0.03191062,41697.0,41695.0,0.37363697]
[1644096882553,0.03191062,41697.0,41695.0,0.37461881]
[1644096882953,0.03191062,41697.0,41695.0,0.37461879]
[1644096883156,0.03191062,41697.0,41695.0,0.00098182]
[1644096887010,0.01,41699.0,41695.0,0.00098182]
[1644096887210,0.01,41699.0,41698.0,0.28469741]
[1644096887410,0.04191062,41699.0,41698.0,0.88132675]
[1644096890257,0.01,41699.0,41698.0,0.88132675]
[1644096890857,0.01,41699.0,41698.0,0.93132675]
[1644096891061,0.01,41699.0,41698.0,1.02932675]
[1644096891259,0.01,41699.0,41698.0,1.12932675]
[1644096891825,0.01,41699.0,41698.0,1.13030836]
[1644096892214,0.00027655,41701.0,41699.0,1.0748746]
[1644096892513,0.00027655,41701.0,41700.0,0.69685317]
[1644096892713,0.01897565,41704.0,41700.0,0.79583475]
[1644096892912,0.01897565,41704.0,41703.0,0.01808938]
[1644096893113,0.01897565,41704.0,41703.0,0.40206993]
[1644096893312,0.0002459,41708.0,41707.0,0.29438714]
[1644096893513,0.01,41709.0,41707.0,0.91400454]
[1644096893714,0.01,41709.0,41708.0,0.384999]
[1644096893912,0.01,41709.0,41708.0,0.43598053]
[1644096894714,0.01,41709.0,41708.0,0.69180074]
[1644096894914,0.01,41709.0,41708.0,0.59180074]
[1644096895215,0.01,41709.0,41708.0,0.00098153]
[1644096895413,0.01,41709.0,41708.0,0.00098151]
[1644096896073,0.6667599,41709.0,41708.0,0.00098151]
[1644096901405,0.38757079,41709.0,41708.0,0.00098151]
[1644096903654,0.41948141,41709.0,41708.0,0.00098151]
[1644096905758,0.38757079,41709.0,41708.0,0.00098151]
[1644096908806,0.01,41709.0,41708.0,0.00098151]
[1644096912478,0.01,41709.0,41708.0,0.62048827]
[1644096912874,0.01,41709.0,41708.0,0.77048827]
[1644096913975,0.01,41709.0,41708.0,0.67048827]
[1644096914176,0.01,41709.0,41708.0,0.81848827]
[1644096915214,0.01,41709.0,41708.0,0.81927456]
[1644096916619,0.01,41709.0,41708.0,0.66927456]
[1644096916817,0.01,41709.0,41708.0,0.62127456]
[1644096917023,0.07365519,41709.0,41708.0,0.00176773]
[1644096917218,0.07292591,41709.0,41708.0,0.00176773]
[1644096917419,0.00927072,41709.0,41708.0,0.00176771]
[1644096917918,0.3521452,41709.0,41708.0,0.00176771]
[1644096920563,0.3521452,41709.0,41708.0,0.00156113]
[1644096926163,0.4001452,41709.0,41708.0,0.00156113]
[1644096926764,0.43205582,41709.0,41708.0,0.00156113]
[1644096928165,0.38405582,41709.0,41708.0,0.00156113]
[1644096941961,0.3521452,41709.0,41708.0,0.00156113]
[1644096942764,0.43205582,41709.0,41708.0,0.00156113]
[1644096942962,0.43205582,41709.0,41708.0,0.00148525]
[1644096943163,0.7,41708.0,41704.0,0.01808938]
[1644096943463,0.048,41707.0,41704.0,0.01912925]
[1644096944061,0.048,41707.0,41704.0,0.00103987]
[1644096945507,0.33272584,41709.0,41704.0,0.00103987]
[1644096945708,0.04867002,41708.0,41704.0,0.00103987]
[1644096946508,0.04867002,41708.0,41707.0,0.01808938]
[1644096946709,0.048,41708.0,41707.0,0.00103987]
[1644096948263,0.03191062,41709.0,41707.0,0.00103987]
[1644096949762,0.00027603,41710.0,41707.0,0.00103987]
[1644096949963,0.34686773,41708.0,41707.0,0.00103987]
[1644096950663,0.60595065,41708.0,41707.0,0.00103987]
[1644096951063,0.34686773,41708.0,41707.0,0.00103987]
[1644096953113,0.63673504,41708.0,41707.0,0.00103987]
[1644096956263,0.03191062,41709.0,41707.0,0.00103987]
[1644096956865,0.00071508,41710.0,41707.0,0.00103987]
[1644096957465,0.3030336,41711.0,41707.0,0.00103987]
[1644096957664,0.52902468,41711.0,41707.0,0.00103987]
[1644096958067,0.00071507,41711.0,41710.0,0.01808938]
[1644096958266,0.00071507,41711.0,41710.0,0.01912925]
[1644096958668,0.01974289,41713.0,41710.0,0.01912925]
[1644096959067,0.02070384,41713.0,41712.0,0.2278842]
[1644096959328,0.02045794,41713.0,41712.0,0.22892407]
[1644096959717,0.00071505,41713.0,41712.0,0.22892407]
[1644096959918,0.0002459,41716.0,41712.0,0.22892407]
[1644096960118,0.00071503,41715.0,41712.0,0.22892407]
[1644096960320,0.03191062,41713.0,41712.0,0.00103985]
[1644096961519,0.0002459,41714.0,41712.0,0.00103985]
[1644096961720,0.39397176,41715.0,41712.0,0.00103985]
[1644096962024,0.0002459,41714.0,41712.0,0.00103985]
[1644096962222,0.39397176,41715.0,41712.0,0.00103985]
[1644096962422,0.0002459,41714.0,41712.0,0.00103985]
[1644096962720,0.00093876,41715.0,41712.0,0.00103985]
[1644096962921,0.00069286,41715.0,41712.0,0.00103985]
[1644096963165,0.00093876,41715.0,41712.0,0.00103985]
[1644096963564,0.0002459,41715.0,41712.0,0.00103985]
[1644096963765,0.03260347,41716.0,41712.0,0.00103985]
[1644096963964,0.00407638,41713.0,41712.0,0.00103985]
[1644096967919,0.00407638,41713.0,41712.0,0.00096096]
[1644096968821,0.00066972,41715.0,41712.0,0.00096096]
[1644096968822,0.00025587,41715.0,41712.0,0.00096096]
[1644096969223,0.03215849,41717.0,41712.0,0.00096096]
[1644096969421,0.00271759,41713.0,41712.0,0.00096096]
[1644096972271,0.00271759,41713.0,41711.0,0.01809738]
[1644096972866,0.0026044,41713.0,41711.0,0.01809738]
[1644096974818,0.00025587,41715.0,41711.0,0.01809738]
[1644096975012,0.00025587,41715.0,41714.0,0.35570053]
[1644096975213,0.00025587,41716.0,41714.0,0.35570053]
[1644096975414,0.03287348,41717.0,41714.0,0.35570053]
[1644096975613,0.00025587,41716.0,41711.0,0.01809738]
[1644096975815,0.03287349,41717.0,41709.0,0.30993915]
[1644096976016,0.00025587,41716.0,41709.0,0.30993915]
[1644096976216,0.03261762,41717.0,41709.0,0.30993915]
[1644096976514,0.00025587,41716.0,41709.0,0.30993915]
[1644096976717,0.03215849,41717.0,41710.0,0.33550419]
[1644096976917,0.00025587,41716.0,41710.0,0.33550419]
[1644096977117,0.03261761,41717.0,41710.0,0.33550419]
[1644096977320,0.00025587,41716.0,41710.0,0.33550419]
[1644096977519,0.03287348,41717.0,41710.0,0.33550419]
[1644096977719,0.00025587,41716.0,41710.0,0.33550419]
[1644096977919,0.03190262,41717.0,41710.0,0.33550419]
[1644096978162,0.00025587,41716.0,41710.0,0.33550419]
[1644096978363,0.03287348,41717.0,41710.0,0.58712808]
[1644096978565,0.00025587,41716.0,41710.0,0.33550419]
[1644096978763,0.03261761,41717.0,41710.0,0.59001106]
[1644096978964,0.00025587,41716.0,41710.0,0.33550419]
[1644096979165,0.03215849,41717.0,41711.0,0.01809738]
[1644096979365,0.00025587,41716.0,41711.0,0.01809738]
[1644096979568,0.03217789,41717.0,41710.0,0.33550419]
[1644096979766,0.00025587,41716.0,41710.0,0.33550419]
[1644096979971,0.03243376,41717.0,41710.0,0.33550419]
[1644096980267,0.00025587,41716.0,41710.0,0.58617519]
[1644096980468,0.03190262,41717.0,41710.0,0.58617519]
[1644096980667,0.00025587,41716.0,41710.0,0.58617519]
[1644096980866,0.03243376,41717.0,41710.0,0.58617519]
[1644096981067,0.00025587,41716.0,41710.0,0.33550419]
[1644096981267,0.32841076,41717.0,41710.0,0.5878934]
[1644096981467,0.00025587,41716.0,41709.0,0.209224]
[1644096981666,0.32839136,41717.0,41709.0,0.209224]
[1644096981915,0.32839136,41717.0,41709.0,0.20993939]
[1644096981916,0.03190262,41711.0,41709.0,0.20993939]
[1644096982116,0.29694811,41717.0,41709.0,0.20993939]
[1644096982317,0.00025587,41715.0,41714.0,0.01809738]
[1644096982519,0.03190262,41715.0,41714.0,0.01809738]
[1644096982714,0.00025587,41716.0,41714.0,0.01809738]
[1644096982918,0.000682,41717.0,41709.0,0.30990614]
[1644096983118,0.03190262,41716.0,41711.0,0.01809738]
[1644096983317,0.03190262,41716.0,41712.0,0.40180899]
[1644096983516,0.03215849,41716.0,41712.0,0.40180899]
[1644096984116,0.03190262,41716.0,41712.0,0.40180899]
[1644096984316,0.00025587,41716.0,41712.0,0.40180899]
[1644096984515,0.000682,41717.0,41712.0,0.40180899]
[1644096984717,0.00025587,41716.0,41712.0,0.40180899]
[1644096984917,0.00093787,41717.0,41712.0,0.40180899]
[1644096985120,0.00025587,41716.0,41712.0,0.40180899]
[1644096985318,0.00025587,41718.0,41712.0,0.40180899]
[1644096985616,0.000682,41717.0,41712.0,0.40180899]
[1644096986518,0.00025587,41718.0,41712.0,0.40180899]
[1644096986717,0.000682,41717.0,41712.0,0.40180899]
[1644096987517,0.00025587,41718.0,41712.0,0.40180899]
[1644096987721,0.00067507,41717.0,41712.0,0.40180899]
[1644096988720,0.00025587,41718.0,41712.0,0.40180899]
[1644096988920,0.00067507,41717.0,41712.0,0.40180899]
[1644096989325,0.00067507,41717.0,41715.0,0.01809738]
[1644096989519,0.00067507,41717.0,41712.0,0.40180899]
[1644096989720,0.00067507,41717.0,41715.0,0.01809738]
[1644096989922,0.00025587,41718.0,41712.0,0.40180899]
[1644096990120,0.00067507,41717.0,41712.0,0.40180899]
[1644096990328,0.00067507,41717.0,41711.0,0.01809738]
[1644096991224,0.00025587,41718.0,41711.0,0.01809738]